bitfinex-derivatives/quotes_SOLF0:USTF0_20220102
["timestamp","ask_amount","ask_price","bid_price","bid_amount"]
[1641143499713,11.95686153,178.18,178.1,11.957751]
[1641143499914,11.95686153,178.17,178.13,3.98583199]
[1641143500912,27.66479,178.19,178.09,11.957751]
[1641143501114,11.95700229,178.18,178.14,3.98566743]
[1641143502116,9.81944045,178.21,178.1,11.957751]
[1641143502618,12.81944045,178.21,178.1,11.957751]
[1641143502817,3.0,178.19,178.1,11.957751]
[1641143503016,11.95724197,178.18,178.14,3.98574732]
[1641143503917,12.50546499,178.21,178.1,11.957751]
[1641143504721,3.0,178.17,178.11,27.66479]
[1641143504920,3.0,178.17,178.14,3.98576644]
[1641143505321,17.45729932,178.18,178.14,3.98576644]
[1641143505519,2.68602454,178.16,178.12,1.29972279]
[1641143506420,5.5,178.18,178.11,27.66479]
[1641143506621,12.81944045,178.21,178.11,27.66479]
[1641143506820,2.68600513,178.17,178.14,3.98572968]
[1641143507921,2.68605705,178.2,178.12,1.29971983]
[1641143508122,6.607,178.19,178.12,1.29971983]
[1641143508823,6.607,178.19,178.11,27.66479]
[1641143509027,14.64342904,178.18,178.14,3.98579066]
[1641143509830,11.95703876,178.19,178.15,3.98567959]
[1641143510624,9.81944045,178.21,178.14,3.98569573]
[1641143510625,11.95703876,178.18,178.14,3.98569573]
[1641143511325,11.95703876,178.18,178.11,27.66479]
[1641143511525,2.68596779,178.18,178.12,1.29972647]
[1641143512427,9.81944045,178.21,178.11,27.66479]
[1641143512726,16.90015155,178.18,178.14,3.98571718]
[1641143513227,2.68599138,178.17,178.12,1.29972462]
[1641143514530,9.81944045,178.21,178.13,3.98587657]
[1641143514730,11.95762972,178.17,178.13,9.18887657]
[1641143514932,11.95762972,178.17,178.14,27.66479]
[1641143515230,11.60802972,178.17,178.14,30.66479]
[1641143515429,9.81944045,178.21,178.15,5.28521145]
[1641143515828,9.81944045,178.21,178.15,8.28521145]
[1641143516834,9.81944045,178.21,178.2,27.66479]
[1641143517035,12.50395655,178.26,178.2,27.66479]
[1641143517235,12.50395655,178.26,178.19,3.98439588]
[1641143517441,3.0,178.23,178.16,1e-08]
[1641143517636,3.0,178.19,178.16,1e-08]
[1641143517838,3.0,178.18,178.16,1e-08]
[1641143518038,3.0,178.17,178.16,1e-08]
[1641143518536,3.0,178.17,178.07,61.7945]
[1641143518742,3.0,178.18,178.08,31.88803866]
[1641143519939,5.991,178.19,178.08,31.88803866]
[1641143520138,5.991,178.19,178.08,6.12327932]
[1641143520339,8.991,178.19,178.08,6.12327932]
[1641143521040,3.0,178.18,178.05,50.88934295]
[1641143521238,64.0942,178.18,178.05,50.88934295]
[1641143521638,61.0942,178.18,178.05,41.01131798]
[1641143521841,61.0942,178.18,178.05,9.12327932]
[1641143522238,3.0,178.15,178.05,6.12327932]
[1641143522444,7.637,178.15,178.05,6.12327932]
[1641143523241,7.637,178.15,178.02,37.49797948]
[1641143523444,3.0,178.14,178.02,31.88803866]
[1641143524545,4.637,178.15,178.02,31.88803866]
[1641143524746,7.637,178.15,178.01,31.88803866]
[1641143524948,5.3183432,178.15,178.01,31.88803866]
[1641143525145,3.0,178.14,178.02,31.88803866]
[1641143525545,3.0,178.13,178.02,31.88803866]
[1641143526347,3.0,178.14,178.02,31.88803866]
[1641143526548,3.0,178.15,178.02,31.88803866]
[1641143526748,3.0,178.15,178.02,38.05403866]
[1641143528050,3.0,178.15,178.04,31.88803866]
[1641143529352,3.0,178.14,178.04,31.88803866]
[1641143529551,9.739,178.14,178.04,31.88803866]
[1641143529751,6.739,178.14,178.03,31.88803866]
[1641143530858,5.6129322,178.12,178.02,31.88803866]
[1641143531054,3.0,178.04,178.02,31.88803866]
[1641143531353,8.814,178.04,178.0,16.00115449]
[1641143531752,5.814,178.04,178.0,16.00115449]
[1641143531955,5.814,178.04,177.96,47.81727402]
[1641143532157,5.814,178.04,177.91,115.17035334]
[1641143532354,5.814,178.04,177.92,8.80338139]
[1641143532555,3.0,178.03,177.92,8.80338139]
[1641143533158,5.814,178.04,177.92,24.80453588]
[1641143534855,5.814,178.04,177.92,72.6218099]
[1641143535455,62.5263,178.08,177.92,78.8978099]
[1641143535656,62.5263,178.08,177.92,81.8978099]
[1641143535855,62.5263,178.08,177.93,3.0]
[1641143536057,3.0,178.09,177.94,5.61245966]
[1641143536260,3.0,178.1,177.94,8.61245966]
[1641143536758,5.61261716,178.13,177.95,3.0]
[1641143536957,5.61261716,178.13,177.96,3.0]
[1641143537357,8.61261716,178.13,177.94,14.38645966]
[1641143537560,3.0,178.12,177.94,11.38645966]
[1641143537758,3.0,178.12,177.96,47.81727402]
[1641143538160,3.0,178.12,177.97,60.1201]
[1641143538357,10.67761716,178.13,177.97,60.1201]
[1641143538358,5.61403509,178.09,177.97,60.1201]
[1641143538658,13.63903509,178.09,177.95,47.81727402]
[1641143538858,58.9185,178.08,177.95,47.81727402]
[1641143539659,58.9185,178.08,177.93,3.19029166]
[1641143540060,5.025,178.09,177.95,3.0]
[1641143540460,5.025,178.09,177.93,5.61277468]
[1641143540662,8.025,178.09,177.93,5.61277468]
[1641143540861,3.0,178.07,177.92,19.19144615]
[1641143541062,8.61450789,178.07,177.92,19.19144615]
[1641143541463,3.0,178.06,177.92,19.19144615]
[1641143541663,59.1695,178.05,177.92,19.19144615]
[1641143541862,63.9745,178.05,177.92,19.19144615]
[1641143542063,63.9745,178.05,177.94,3.0]
[1641143542262,63.9745,178.05,177.94,6.545]
[1641143543165,4.805,178.05,177.94,6.545]
[1641143543362,5.61324726,178.11,177.94,6.545]
[1641143543363,5.61324726,178.11,177.98,3.0]
[1641143543562,60.7232,178.1,177.98,4.957]
[1641143544765,60.7232,178.1,177.95,3.0]
[1641143545569,72.68535268,178.1,178.02,11.96215268]
[1641143546369,60.7232,178.1,178.02,11.96215268]
[1641143548971,72.68535268,178.1,178.02,11.96215268]
[1641143549671,3.0,178.09,178.02,11.96215268]
[1641143549872,72.68535268,178.1,178.02,11.96215268]
[1641143551673,72.68535268,178.1,178.01,11.96215268]
[1641143552476,72.68535268,178.1,177.98,6.12327932]
[1641143552477,72.68535268,178.1,178.02,11.96215268]
[1641143552776,3.0,178.07,178.02,11.96215268]
[1641143552977,5.054,178.07,178.01,11.96215268]
[1641143555678,17.01615268,178.07,177.99,11.96215268]
[1641143558086,2.69048562,178.06,177.99,11.96215268]
[1641143558688,3.0,178.03,177.99,11.96215268]
[1641143558884,4.327,178.03,177.99,11.96215268]
[1641143559487,2.69048562,178.02,177.97,11.96215268]
[1641143560988,4.327,178.03,177.97,11.96215268]
[1641143562289,4.327,178.03,177.99,11.96215268]
[1641143562488,17.01615268,178.07,177.99,11.96215268]
[1641143562790,2.69044408,178.06,177.99,11.96215268]
[1641143565595,14.65259676,178.06,177.98,11.96215268]
[1641143566597,19.07659676,178.06,177.98,11.96215268]
[1641143566896,19.07659676,178.06,177.97,11.96215268]
[1641143567699,14.65259676,178.05,177.96,11.96215268]
[1641143568501,2.69044408,178.05,177.97,11.96215268]
[1641143569404,2.69044408,178.05,177.98,11.96215268]
[1641143570103,2.69044408,178.05,177.99,11.96215268]
[1641143573907,3.0,178.02,177.99,11.96215268]
[1641143574108,5.163,178.02,177.98,11.96215268]
[1641143577211,3.0,178.0,177.98,11.96215268]
[1641143577411,5.163,178.02,177.98,11.96215268]
[1641143577611,3.98871335,178.0,177.96,11.96215268]
[1641143580014,3.98871335,178.0,177.92,33.19993307]
[1641143580218,3.98871335,178.0,177.87,110.38157402]
[1641143580419,3.0,177.95,177.87,110.38157402]
[1641143580616,8.384,177.95,177.87,47.81727402]
[1641143580820,8.384,177.95,177.92,11.96829306]
[1641143581318,5.384,177.95,177.92,11.96829306]
[1641143582118,3.98871335,177.93,177.89,11.96829306]
[1641143583217,6.98871335,177.93,177.89,11.96829306]
[1641143583418,3.98871335,177.93,177.89,11.96829306]
[1641143584218,3.98871335,177.93,177.85,31.91544816]
[1641143584219,3.98871335,177.94,177.9,11.96829306]
[1641143584419,3.98871335,177.94,177.9,2.37527316]
[1641143585220,3.98871335,177.94,177.85,38.03349039]
[1641143585423,3.98871335,177.92,177.84,31.91544816]
[1641143586222,3.99031094,177.95,177.86,31.91544816]
[1641143586422,3.0,177.93,177.86,31.91544816]
[1641143586822,3.0,177.95,177.86,31.91544816]
[1641143587029,3.0,177.95,177.87,31.91544816]
[1641143587629,4.359,177.96,177.87,31.91544816]
[1641143587824,3.99051503,177.94,177.86,31.91544816]
[1641143588023,27.66479,177.89,177.86,31.91544816]
[1641143588624,27.66479,177.89,177.87,31.91544816]
[1641143589623,21.28043993,177.89,177.87,31.91544816]
[1641143591026,21.28043993,177.89,177.85,31.91544816]
[1641143591228,26.30643993,177.89,177.85,31.91544816]
[1641143592526,26.30643993,177.89,177.84,31.91544816]
[1641143592726,21.28043993,177.89,177.84,31.91544816]
[1641143594031,27.66479,177.86,177.83,31.91544816]
[1641143594527,27.66479,177.86,177.82,38.03349039]
[1641143594728,32.30179,177.86,177.82,38.03349039]
[1641143595529,32.30179,177.86,177.8,31.91544816]
[1641143597032,36.29198412,177.86,177.78,31.91544816]
[1641143597632,3.99019412,177.84,177.76,31.91544816]
[1641143598132,27.66479,177.82,177.76,31.91544816]
[1641143598331,33.15179,177.82,177.76,31.91544816]
[1641143599332,33.15179,177.82,177.75,31.91544816]
[1641143599934,3.99019412,177.81,177.74,6.11804223]
[1641143600136,27.66479,177.77,177.74,6.11804223]
[1641143600335,33.66979,177.77,177.74,6.11804223]
[1641143600835,33.66979,177.77,177.75,31.91544816]
[1641143601634,33.66979,177.77,177.69,61.53384739]
[1641143601635,33.66979,177.77,177.73,31.91544816]
[1641143602537,33.66979,177.77,177.74,31.91544816]
[1641143604543,33.66979,177.77,177.73,31.91544816]
[1641143605142,33.66979,177.77,177.72,31.91544816]
[1641143606441,3.0,177.74,177.72,31.91544816]
[1641143606844,3.0,177.74,177.71,31.91544816]
[1641143607144,36.66979,177.77,177.71,31.91544816]
[1641143607343,3.0,177.76,177.71,31.91544816]
[1641143607543,36.66979,177.77,177.71,31.91544816]
[1641143607742,37.65998412,177.77,177.71,31.91544816]
[1641143607942,31.65498412,177.77,177.7,6.803]
[1641143608743,27.66479,177.77,177.71,31.91544816]
[1641143609846,27.66479,177.77,177.72,31.91544816]
[1641143610645,27.66479,177.77,177.73,31.91544816]
[1641143611545,3.0,177.76,177.73,31.91544816]
[1641143611745,27.66479,177.77,177.7,31.91544816]
[1641143612146,8.62445513,177.76,177.7,31.91544816]
[1641143612348,27.66479,177.73,177.7,31.91544816]
[1641143612547,31.94579,177.73,177.7,31.91544816]
[1641143613148,35.93598412,177.73,177.65,38.03349039]
[1641143613949,31.94579,177.73,177.72,3.99480153]
[1641143614151,27.66479,177.73,177.72,3.99480153]
[1641143616053,33.29035256,177.73,177.68,11.98464402]
[1641143616254,27.66479,177.7,177.68,11.98464402]
[1641143616652,27.66479,177.7,177.67,11.98464402]
[1641143617454,27.66479,177.7,177.66,11.98464402]
[1641143618252,27.66479,177.67,177.66,11.98464402]
[1641143618453,32.80579,177.67,177.66,11.98464402]
[1641143618951,32.80579,177.67,177.64,11.98464402]
[1641143619560,8.62825383,177.65,177.6,16.91544816]
[1641143619754,3.0,177.64,177.6,16.91544816]
[1641143620356,27.66479,177.63,177.61,6.11804223]
[1641143620555,3.0,177.62,177.61,6.11804223]
[1641143620755,32.73879,177.63,177.61,6.11804223]
[1641143621157,3.0,177.62,177.61,6.11804223]
[1641143621559,32.73879,177.63,177.54,7.40910694]
[1641143621957,5.62920431,177.61,177.54,7.40910694]
[1641143622358,27.66479,177.58,177.54,7.40910694]
[1641143622758,32.73879,177.63,177.51,9.86459636]
[1641143622759,27.66479,177.63,177.53,3.0]
[1641143622958,27.66479,177.63,177.54,3.0]
[1641143623159,27.66479,177.63,177.53,5.253]
[1641143623359,27.66479,177.63,177.54,3.0]
[1641143623562,27.66479,177.63,177.55,1.29106471]
[1641143625364,3.0,177.62,177.52,7.40910694]
[1641143625563,33.13379,177.63,177.52,7.40910694]
[1641143626264,27.66479,177.59,177.52,55.22638096]
[1641143626462,33.45179,177.59,177.52,55.22638096]
[1641143626963,33.45179,177.59,177.52,47.81727402]
[1641143627963,33.45179,177.59,177.51,1.29106471]
[1641143628364,27.66479,177.56,177.51,1.29106471]
[1641143628565,33.45179,177.59,177.53,3.0]
[1641143628864,27.66479,177.59,177.53,3.0]
[1641143629264,27.66479,177.59,177.49,47.81727402]
[1641143629465,27.66479,177.59,177.54,3.0]
[1641143629665,60.7063,177.64,177.54,1.29106471]
[1641143630267,27.66479,177.61,177.54,1.29106471]
[1641143630465,27.66479,177.61,177.53,17.2737033]
[1641143632167,27.66479,177.61,177.53,20.2737033]
[1641143632366,27.66479,177.61,177.53,17.2737033]
[1641143633468,27.66479,177.61,177.54,1.29106471]
[1641143634070,27.66479,177.61,177.54,4.29106471]
[1641143634471,27.66479,177.61,177.54,3.0]
[1641143635473,27.66479,177.61,177.55,3.0]
[1641143635670,27.66479,177.61,177.55,1.29106471]
[1641143636071,27.66479,177.64,177.55,1.29106471]
[1641143637373,27.66479,177.64,177.53,7.40910694]
[1641143637976,34.34679,177.64,177.53,7.40910694]
[1641143640377,27.66479,177.61,177.57,31.97660503]
[1641143641380,27.66479,177.61,177.56,31.97660503]
[1641143641979,27.66479,177.61,177.59,3.0]
[1641143642178,27.66479,177.64,177.59,3.0]
[1641143642378,27.66479,177.64,177.56,31.97660503]
[1641143643279,27.66479,177.64,177.59,31.97660503]
[1641143644279,5.62762036,177.66,177.59,31.97660503]
[1641143644681,5.62762036,177.66,177.58,31.97660503]
[1641143645481,11.28462036,177.66,177.58,31.97660503]
[1641143645885,11.28462036,177.66,177.57,7.40910694]
[1641143647385,11.28462036,177.66,177.59,31.97660503]
[1641143648986,11.28462036,177.66,177.58,1.29106471]
[1641143649485,11.28462036,177.66,177.6,3.0]
[1641143649687,5.62825383,177.64,177.58,1.29106471]
[1641143649887,58.8321,177.67,177.57,47.9579076]
[1641143649888,3.0,177.65,177.61,11.99112116]
[1641143650089,2.23298921,177.65,177.61,11.99112116]
[1641143650290,2.23298921,177.64,177.61,1.09522116]
[1641143650488,55.32958,177.62,177.61,1.09522116]
[1641143650690,60.55258,177.62,177.57,40.15272276]
[1641143650988,60.55258,177.62,177.59,1.29106471]
[1641143651188,60.55258,177.62,177.61,0.76701079]
[1641143651389,60.55258,177.62,177.59,1.29106471]
[1641143651792,60.55258,177.62,177.61,1.29106471]
[1641143652990,60.55258,177.62,177.59,1.29106471]
[1641143654190,60.55258,177.62,177.6,0.76701079]
[1641143654791,60.55258,177.62,177.61,1.29106471]
[1641143654991,5.223,177.62,177.61,1.29106471]
[1641143655391,5.223,177.62,177.61,2.0580755]
[1641143655591,64.45972036,177.67,177.61,1.29106471]
[1641143656193,58.8321,177.67,177.61,0.76701079]
[1641143656592,58.8321,177.67,177.57,3.0]
[1641143656792,58.8321,177.67,177.61,0.76701079]
[1641143656993,58.8321,177.67,177.56,27.66479]
[1641143657193,58.8321,177.67,177.66,0.76701079]
[1641143657494,4.329,177.68,177.66,0.76701079]
[1641143657693,4.329,177.68,177.62,1.29106471]
[1641143658394,4.329,177.68,177.6,0.76701079]
[1641143659198,14.21815378,177.68,177.63,0.76701079]
[1641143659400,9.88915378,177.68,177.63,0.76701079]
[1641143659795,27.66479,177.69,177.64,1.29106471]
[1641143661203,35.52476624,177.69,177.64,1.29106471]
[1641143661399,5.62841222,177.65,177.59,6.10010615]
[1641143661597,11.54241222,177.65,177.59,6.10010615]
[1641143662100,13.77540143,177.65,177.59,6.10010615]
[1641143662396,11.54241222,177.65,177.59,6.10010615]
[1641143662597,27.66479,177.6,177.59,6.10010615]
[1641143662797,32.60979,177.6,177.57,0.76701079]
[1641143663696,32.60979,177.6,177.53,6.10010615]
[1641143663998,32.60979,177.6,177.58,0.76701079]
[1641143664197,32.60979,177.6,177.57,0.76701079]
[1641143664497,27.66479,177.58,177.53,6.10010615]
[1641143664696,27.66479,177.58,177.56,0.76701079]
[1641143664897,27.66479,177.58,177.53,6.10010615]
[1641143665498,27.66479,177.58,177.56,0.76701079]
[1641143665798,27.66479,177.58,177.57,0.76701079]
[1641143666397,27.66479,177.58,177.56,0.76701079]
[1641143666599,27.66479,177.58,177.55,0.76701079]
[1641143666799,27.66479,177.58,177.5,50.93863453]
[1641143667199,27.66479,177.58,177.5,47.93863453]
[1641143667397,27.66479,177.58,177.56,0.76701079]
[1641143667798,27.66479,177.58,177.51,31.97660503]
[1641143668201,27.66479,177.58,177.54,0.76701079]
[1641143668399,27.66479,177.58,177.55,0.76701079]
[1641143668598,27.66479,177.58,177.53,31.97660503]
[1641143668999,27.66479,177.58,177.57,0.76701079]
[1641143669202,27.66479,177.58,177.53,31.97660503]
[1641143669400,33.99779,177.58,177.53,31.97660503]
[1641143669701,33.99779,177.58,177.56,0.76701079]
[1641143669902,33.99779,177.58,177.54,0.76701079]
[1641143670303,33.99779,177.58,177.57,0.76701079]
[1641143670505,33.99779,177.58,177.56,0.76701079]
[1641143670908,33.99779,177.58,177.52,31.97660503]
[1641143671107,33.99779,177.58,177.56,0.76701079]
[1641143671510,33.99779,177.58,177.51,31.97660503]
[1641143671907,33.99779,177.58,177.54,0.76701079]
[1641143672107,33.99779,177.58,177.51,31.97660503]
[1641143672508,33.99779,177.58,177.57,0.76701079]
[1641143672710,27.66479,177.58,177.57,0.76701079]
[1641143674912,63.6988,177.64,177.57,0.76701079]
[1641143675612,2.23298921,177.61,177.52,38.07671118]
[1641143675813,71.35078921,177.64,177.52,38.07671118]
[1641143676012,69.1178,177.64,177.52,38.07671118]
[1641143676215,71.35078921,177.64,177.56,0.76701079]
[1641143676412,71.35078921,177.64,177.57,0.76701079]
[1641143676613,27.66479,177.61,177.58,3.9982054]
[1641143677412,27.66479,177.61,177.59,3.9982054]
[1641143678715,55.32958,177.61,177.59,3.9982054]
[1641143681818,55.32958,177.61,177.58,3.9982054]
[1641143682420,55.32958,177.61,177.6,3.9982054]
[1641143683220,55.32958,177.61,177.57,0.76701079]
[1641143683422,55.32958,177.61,177.57,12.76139863]
[1641143683620,55.32958,177.61,177.57,11.99438784]
[1641143684023,55.32958,177.61,177.57,12.76139863]
[1641143684221,27.66479,177.61,177.58,11.99438784]
[1641143684420,11.99438784,177.66,177.58,11.99438784]
[1641143684623,39.65917784,177.66,177.62,0.76701079]
[1641143684820,39.65917784,177.66,177.58,11.99438784]
[1641143685427,27.66479,177.66,177.64,3.9973159]
[1641143686426,27.66479,177.66,177.65,3.9973159]
[1641143688033,27.66479,177.66,177.63,3.9973159]
[1641143688227,32.66879,177.66,177.63,3.9973159]
[1641143688627,44.66317784,177.66,177.62,3.9973159]
[1641143690431,11.99438784,177.65,177.61,3.9973159]
[1641143690630,27.66479,177.63,177.61,3.9973159]
[1641143691230,27.66479,177.63,177.6,3.9973159]
[1641143692929,27.66479,177.63,177.61,3.9973159]
[1641143696033,27.66479,177.63,177.6,3.9973159]
[1641143696433,27.66479,177.63,177.6,4.76432669]
[1641143696634,27.66479,177.63,177.6,3.9973159]
[1641143696834,27.66479,177.63,177.61,0.76701079]
[1641143697434,27.66479,177.63,177.61,4.76432669]
[1641143698134,27.66479,177.63,177.59,11.99438784]
[1641143698633,27.66479,177.63,177.59,12.76139863]
[1641143698933,27.66479,177.63,177.59,11.99438784]
[1641143699133,27.66479,177.63,177.62,3.99777196]
[1641143699534,29.89777921,177.63,177.62,3.99777196]
[1641143699933,29.89777921,177.63,177.61,3.99777196]
[1641143700138,27.66479,177.63,177.61,3.99777196]
[1641143701636,2.70992256,177.62,177.61,3.99777196]
[1641143703334,2.70992256,177.62,177.57,12.76139863]
[1641143703335,2.70992256,177.62,177.6,3.99777196]
[1641143704636,27.66479,177.61,177.6,3.99777196]
[1641143704838,33.71579,177.61,177.6,3.99777196]
[1641143706237,48.4201004,177.61,177.57,5.2858995]
[1641143706640,27.66479,177.58,177.57,5.2858995]
[1641143707238,30.37471256,177.58,177.56,5.2858995]
[1641143707639,30.37471256,177.58,177.56,6.05291029]
[1641143708238,34.88171256,177.58,177.56,6.05291029]
[1641143708440,32.17179,177.58,177.56,3.99777196]
[1641143708640,3.99847817,177.57,177.56,3.99777196]
[1641143709439,10.16347817,177.57,177.56,3.99777196]
[1641143709641,8.87549868,177.57,177.56,5.28584713]
[1641143711341,6.165,177.57,177.55,0.76701079]
[1641143711541,27.66479,177.58,177.55,0.76701079]
[1641143712042,27.66479,177.58,177.56,5.28665238]
[1641143712242,2.71050278,177.57,177.56,5.28665238]
[1641143712943,27.66479,177.58,177.52,11.99438784]
[1641143713743,27.66479,177.58,177.52,12.76139863]
[1641143713943,2.23298921,177.57,177.52,11.99438784]
[1641143714142,29.89777921,177.58,177.52,11.99438784]
[1641143714343,29.89777921,177.58,177.57,3.99857342]
[1641143714941,29.89777921,177.58,177.53,11.99438784]
[1641143715143,2.23298921,177.56,177.53,3.99938113]
[1641143715348,5.601,177.56,177.53,3.99938113]
[1641143715646,2.23298921,177.55,177.53,3.99938113]
[1641143715943,5.601,177.56,177.53,3.99938113]
[1641143716146,2.23298921,177.54,177.49,11.99438784]
[1641143716445,2.23298921,177.54,177.5,1.28770344]
[1641143716745,27.66479,177.51,177.5,1.28770344]
[1641143717146,34.28279,177.51,177.5,1.28770344]
[1641143717344,34.28279,177.51,177.47,11.99438784]
[1641143717547,34.28279,177.51,177.49,0.76701079]
[1641143717746,34.28279,177.51,177.47,1.28764978]
[1641143717944,34.28279,177.51,177.47,2.05466057]
[1641143718147,34.28279,177.51,177.47,1.28764978]
[1641143718346,34.28279,177.51,177.45,11.99438784]
[1641143718545,2.71267885,177.5,177.48,1.28764079]
[1641143719146,34.28279,177.51,177.46,1.28764173]
[1641143719747,34.28279,177.51,177.46,0.76701079]
[1641143719949,34.28279,177.51,177.39,3.0]
[1641143719950,2.23298921,177.49,177.44,11.99438784]
[1641143720149,2.71301337,177.5,177.46,0.76701079]
[1641143720348,2.71301337,177.5,177.44,11.99438784]
[1641143720555,2.71301337,177.5,177.46,0.76701079]
[1641143720750,27.66479,177.47,177.46,0.76701079]
[1641143720957,33.79979,177.47,177.46,0.76701079]
[1641143721350,33.79979,177.47,177.43,12.76139863]
[1641143721550,33.79979,177.47,177.43,11.99438784]
[1641143721751,27.39870747,177.47,177.43,11.99438784]
[1641143722252,27.39870747,177.47,177.42,12.76139863]
[1641143722451,27.39870747,177.47,177.42,11.99438784]
[1641143723452,29.63169668,177.47,177.42,11.99438784]
[1641143723652,2.71402895,177.46,177.45,0.76701079]
[1641143723853,2.71402895,177.46,177.41,11.99438784]
[1641143724252,2.23298921,177.43,177.41,11.99438784]
[1641143724451,6.65498921,177.43,177.39,6.10065447]
[1641143724851,32.08679,177.43,177.39,6.10065447]
[1641143725253,32.08679,177.43,177.42,0.76701079]
[1641143725453,5.63507269,177.44,177.39,6.10065447]
[1641143725653,2.71402895,177.42,177.37,31.97660503]
[1641143725854,2.71402895,177.42,177.38,0.76701079]
[1641143726453,2.71402895,177.43,177.35,6.10065447]
[1641143726853,30.37881895,177.43,177.35,6.10065447]
[1641143727258,27.66479,177.43,177.35,6.10065447]
[1641143727554,27.66479,177.43,177.38,0.76701079]
[1641143727754,27.66479,177.43,177.35,6.10065447]
[1641143727955,27.66479,177.43,177.38,0.76701079]
[1641143728854,27.66479,177.43,177.35,6.10065447]
[1641143729456,27.66479,177.43,177.38,0.76701079]
[1641143729656,27.66479,177.43,177.35,6.10065447]
[1641143730157,27.66479,177.43,177.38,0.76701079]
[1641143731060,27.66479,177.43,177.35,38.0772595]
[1641143731257,5.938,177.46,177.37,3.0]
[1641143731459,21.26370747,177.47,177.45,0.76701079]
[1641143731961,21.26370747,177.47,177.38,7.78]
[1641143732259,2.71498634,177.46,177.38,7.78]
[1641143732658,2.71498634,177.46,177.38,4.78]
[1641143732859,2.71498634,177.46,177.38,3.0]
[1641143733061,2.71498634,177.46,177.42,0.76701079]
[1641143734461,2.71498634,177.46,177.38,6.10065447]
[1641143734658,8.06098634,177.46,177.38,6.10065447]
[1641143734858,8.06098634,177.46,177.44,0.76701079]
[1641143735458,8.06098634,177.46,177.39,3.0]
[1641143735659,5.346,177.46,177.44,0.76701079]
[1641143736164,5.346,177.46,177.38,6.10065447]
[1641143736563,5.346,177.46,177.41,0.76701079]
[1641143736763,5.346,177.46,177.45,1.28641025]
[1641143737563,5.346,177.46,177.42,1.28641025]
[1641143738867,27.66479,177.43,177.4,1.28641025]
[1641143739666,27.66479,177.43,177.41,0.76701079]
[1641143739866,27.66479,177.43,177.4,1.28641025]
[1641143740366,27.66479,177.43,177.41,0.76701079]
[1641143740567,27.66479,177.43,177.4,1.28641025]
[1641143741569,27.66479,177.43,177.42,1.28641025]
[1641143742171,29.89777921,177.43,177.42,1.28641025]
[1641143742371,29.89777921,177.43,177.38,1.28641025]
[1641143743772,2.71612106,177.42,177.39,0.76701079]
[1641143743974,7.69312106,177.42,177.38,0.76701079]
[1641143744176,7.69312106,177.42,177.39,0.76701079]
[1641143744374,2.71612106,177.41,177.39,2.05342104]
[1641143744575,4.94911027,177.41,177.39,1.28641025]
[1641143744976,2.71612106,177.41,177.39,1.28641025]
[1641143745176,2.71612106,177.4,177.37,1.28641025]
[1641143745576,2.71612106,177.4,177.37,2.05342104]
[1641143745776,2.71612106,177.4,177.37,1.28641025]
[1641143745978,2.71612106,177.41,177.37,2.05342104]
[1641143746177,2.71612106,177.41,177.37,1.28641025]
[1641143746578,2.23298921,177.38,177.37,1.28641025]
[1641143746778,4.489,177.38,177.35,7.38690881]
[1641143747077,2.23298921,177.37,177.35,7.38690881]
[1641143747680,4.489,177.38,177.35,1.28625434]
[1641143748882,2.71739162,177.37,177.35,1.28625434]
[1641143751084,4.489,177.38,177.35,1.28625434]
[1641143751986,5.63634314,177.4,177.35,1.28625434]
[1641143752687,5.63634314,177.4,177.35,7.3846585]
[1641143752886,2.23298921,177.38,177.35,7.3846585]
[1641143753088,7.81198921,177.38,177.35,7.3846585]
[1641143753288,2.23298921,177.37,177.35,7.3846585]
[1641143753487,7.81198921,177.38,177.35,7.3846585]
[1641143753689,7.81198921,177.38,177.35,1.28625434]
[1641143754088,2.23298921,177.37,177.35,1.28625434]
[1641143754290,5.579,177.38,177.35,1.28625434]
[1641143754889,2.23298921,177.37,177.35,1.28625434]
[1641143755288,65.89923235,177.4,177.35,1.28625434]
[1641143755689,2.23298921,177.39,177.35,1.28625434]
[1641143756088,65.89923235,177.4,177.35,1.28625434]
[1641143756287,63.66624314,177.4,177.35,1.28625434]
[1641143756489,2.71760201,177.38,177.35,1.28625434]
[1641143756690,7.73960201,177.38,177.35,1.28625434]
[1641143757089,5.022,177.38,177.35,1.28625434]
[1641143757689,2.71760201,177.39,177.35,1.28625434]
[1641143757888,2.71760201,177.39,177.35,2.05326513]